Workbook

Sheet sheet1
A1: 附件1
A2: 2024年济宁市省属公费师范生选岗顺序公示
A3: 序号 | B3: 选岗组别 | C3: 组内顺序 | D3: 姓名 | E3: 毕业院校 | F3: 专业 | G3: 准考证号 | H3: 笔试成绩 | I3: 加分 | J3: 综合成绩 | K3: 是否需要提供教育学、心理学成绩单 | L3: 教育学成绩 | M3: 心理学成绩 | N3: 教育学+心理学总成绩 | O3: 备注
A4: 1 | B4: 地理科学 | C4: 1 | D4: 钟文悦 | E4: 泰山学院 | F4: 地理科学 | G4: 24010100501 | H4: 77.50 | I4: 6.00 | J4: =H4+I4 -> 83.50 | K4: 否
A5: 2 | B5: 地理科学 | C5: 2 | D5: 程一佳 | E5: 曲阜师范大学 | F5: 地理科学 | G5: 24010101308 | H5: 75.00 | J5: 75.00 | K5: 否
A6: 3 | B6: 地理科学 | C6: 3 | D6: 王耀文 | E6: 山东师范大学 | F6: 地理科学 | G6: 24010100523 | H6: 73.50 | J6: 73.50 | K6: 否
A7: 4 | B7: 地理科学 | C7: 4 | D7: 李雨莎 | E7: 聊城大学 | F7: 地理科学 | G7: 24010101516 | H7: 73.00 | J7: 73.00 | K7: 否
A8: 5 | B8: 地理科学 | C8: 5 | D8: 吴盈霞 | E8: 山东师范大学 | F8: 地理科学 | G8: 24010101318 | H8: 72.00 | J8: 72.00 | K8: 是 | L8: 85.00 | M8: 75.00 | N8: =SUM(L8:M8) -> 160.00
A9: 6 | B9: 地理科学 | C9: 6 | D9: 唐一帆 | E9: 青岛大学 | F9: 地理科学 | G9: 24010100402 | H9: 72.00 | J9: 72.00 | K9: 是 | L9: 86.00 | M9: 68.00 | N9: =SUM(L9:M9) -> 154.00
A10: 7 | B10: 地理科学 | C10: 7 | D10: 高伟皓 | E10: 临沂大学 | F10: 地理科学 | G10: 24010100409 | H10: 66.50 | J10: 66.50 | K10: 否
A11: 8 | B11: 地理科学 | C11: 8 | D11: 于心宇 | E11: 临沂大学 | F11: 地理科学 | G11: 24010100915 | H11: 66.00 | J11: 66.00 | K11: 否
A12: 9 | B12: 地理科学 | C12: 9 | D12: 武颖沛 | E12: 临沂大学 | F12: 地理科学 | G12: 24010101213 | H12: 64.50 | J12: 64.50 | K12: 是 | L12: 85.00 | M12: 85.00 | N12: =SUM(L12:M12) -> 170.00
A13: 10 | B13: 地理科学 | C13: 10 | D13: 袁乐 | E13: 济南大学 | F13: 地理科学 | G13: 24010101315 | H13: 64.50 | J13: 64.50 | K13: 是 | L13: 67.00 | M13: 95.00 | N13: =SUM(L13:M13) -> 162.00
A14: 11 | B14: 汉语言文学 | C14: 1 | D14: 孔雅茹 | E14: 鲁东大学 | F14: 汉语言文学 | G14: 24010101314 | H14: 80.50 | I14: 10.00 | J14: 90.50 | K14: 否
A15: 12 | B15: 汉语言文学 | C15: 2 | D15: 李雪 | E15: 滨州学院 | F15: 汉语言文学 | G15: 24010100727 | H15: 78.00 | I15: 10.00 | J15: 88.00 | K15: 否
A16: 13 | B16: 汉语言文学 | C16: 3 | D16: 王萱菲 | E16: 青岛大学 | F16: 汉语言文学 | G16: 24010101310 | H16: 75.00 | I16: 10.00 | J16: 85.00 | K16: 否
A17: 14 | B17: 汉语言文学 | C17: 4 | D17: 薄佳 | E17: 齐鲁师范学院 | F17: 汉语言文学 | G17: 24010101601 | H17: 84.50 | J17: 84.50 | K17: 是 | L17: 96.00 | M17: 99.00 | N17: =SUM(L17:M17) -> 195.00
A18: 15 | B18: 汉语言文学 | C18: 5 | D18: 颜德悦 | E18: 鲁东大学 | F18: 汉语言文学 | G18: 24010101425 | H18: 80.50 | I18: 4.00 | J18: 84.50 | K18: 是 | L18: 86.00 | M18: 90.00 | N18: =SUM(L18:M18) -> 176.00
A19: 16 | B19: 汉语言文学 | C19: 6 | D19: 张悦驰 | E19: 菏泽学院 | F19: 汉语言文学 | G19: 24010101526 | H19: 70.50 | I19: 14.00 | J19: 84.50 | K19: 是 | L19: 85.60 | M19: 79.60 | N19: =SUM(L19:M19) -> 165.20
A20: 17 | B20: 汉语言文学 | C20: 7 | D20: 王晓萍 | E20: 聊城大学 | F20: 汉语言文学 | G20: 24010100905 | H20: 83.50 | J20: 83.50 | K20: 是 | L20: 97.00 | M20: 96.00 | N20: =SUM(L20:M20) -> 193.00
A21: 18 | B21: 汉语言文学 | C21: 8 | D21: 殷爱民 | E21: 滨州学院 | F21: 汉语言文学 | G21: 24010100903 | H21: 77.50 | I21: 6.00 | J21: 83.50 | K21: 是 | L21: 74.84 | M21: 75.37 | N21: =SUM(L21:M21) -> 150.21
A22: 19 | B22: 汉语言文学 | C22: 9 | D22: 庞瑞新 | E22: 曲阜师范大学 | F22: 汉语言文学 | G22: 24010100822 | H22: 82.50 | J22: 82.50 | K22: 否
A23: 20 | B23: 汉语言文学 | C23: 10 | D23: 张铭琪 | E23: 鲁东大学 | F23: 汉语言文学 | G23: 24010100320 | H23: 82.00 | J23: 82.00 | K23: 是 | L23: 78.00 | M23: 87.00 | N23: =SUM(L23:M23) -> 165.00
A24: 21 | B24: 汉语言文学 | C24: 11 | D24: 吴彤彤 | E24: 潍坊学院 | F24: 汉语言文学 | G24: 24010100708 | H24: 82.00 | J24: 82.00 | K24: 是 | L24: 73.00 | M24: 89.00 | N24: 162.00
A25: 22 | B25: 汉语言文学 | C25: 12 | D25: 丁硕 | E25: 济宁学院 | F25: 汉语言文学 | G25: 24010100302 | H25: 81.00 | J25: 81.00 | K25: 是 | L25: 88.00 | M25: 88.00 | N25: 176.00
A26: 23 | B26: 汉语言文学 | C26: 13 | D26: 孙天然 | E26: 山东师范大学 | F26: 汉语言文学 | G26: 24010100517 | H26: 81.00 | J26: 81.00 | K26: 是 | L26: 84.00 | M26: 73.00 | N26: 157.00
A27: 24 | B27: 汉语言文学 | C27: 14 | D27: 纪庆杉 | E27: 曲阜师范大学 | F27: 汉语言文学 | G27: 24010100907 | H27: 80.50 | J27: 80.50 | K27: 是 | L27: 92.00 | M27: 92.00 | N27: 184.00
A28: 25 | B28: 汉语言文学 | C28: 15 | D28: 林志宇 | E28: 山东师范大学 | F28: 汉语言文学 | G28: 24010101026 | H28: 80.50 | J28: 80.50 | K28: 是 | L28: 89.00 | M28: 78.00 | N28: 167.00
A29: 26 | B29: 汉语言文学 | C29: 16 | D29: 刘合艳 | E29: 临沂大学 | F29: 汉语言文学 | G29: 24010100904 | H29: 80.00 | J29: 80.00 | K29: 否
A30: 27 | B30: 汉语言文学 | C30: 17 | D30: 张肖文 | E30: 山东师范大学 | F30: 汉语言文学 | G30: 24010100415 | H30: 79.50 | J30: 79.50 | K30: 是 | L30: 85.00 | M30: 92.00 | N30: =SUM(L30:M30) -> 177.00
A31: 28 | B31: 汉语言文学 | C31: 18 | D31: 王莎 | E31: 泰山学院 | F31: 汉语言文学 | G31: 24010101416 | H31: 79.50 | J31: 79.50 | K31: 是 | L31: 83.00 | M31: 92.00 | N31: 175.00
A32: 29 | B32: 汉语言文学 | C32: 19 | D32: 闵令君 | E32: 潍坊学院 | F32: 汉语言文学 | G32: 24010100230 | H32: 79.50 | J32: 79.50 | K32: 是 | L32: 77.00 | M32: 81.00 | N32: 158.00
A33: 30 | B33: 汉语言文学 | C33: 20 | D33: 陈子涵 | E33: 青岛大学 | F33: 汉语言文学 | G33: 24010101121 | H33: 69.50 | I33: 10.00 | J33: 79.50 | K33: 否
A34: 31 | B34: 汉语言文学 | C34: 21 | D34: 鲁语迪 | E34: 济南大学 | F34: 汉语言文学 | G34: 24010100419 | H34: 79.00 | J34: 79.00 | K34: 是 | L34: 80.00 | M34: 95.00 | N34: 175.00
A35: 32 | B35: 汉语言文学 | C35: 22 | D35: 高昕彤 | E35: 临沂大学 | F35: 汉语言文学 | G35: 24010100226 | H35: 79.00 | J35: 79.00 | K35: 是 | L35: 78.00 | M35: 72.00 | N35: 150.00
A36: 33 | B36: 汉语言文学 | C36: 23 | D36: 纪佳钰 | E36: 滨州学院 | F36: 汉语言文学 | G36: 24010100625 | H36: 78.50 | J36: 78.50 | K36: 否
A37: 34 | B37: 汉语言文学 | C37: 24 | D37: 姜梦寒 | E37: 枣庄学院 | F37: 汉语言文学 | G37: 24010101011 | H37: 78.00 | J37: 78.00 | K37: 否
A38: 35 | B38: 汉语言文学 | C38: 25 | D38: 李佳雪 | E38: 齐鲁师范学院 | F38: 汉语言文学 | G38: 24010101205 | H38: 77.00 | J38: 77.00 | K38: 是 | L38: 87.00 | M38: 96.00 | N38: =SUM(L38:M38) -> 183.00
A39: 36 | B39: 汉语言文学 | C39: 26 | D39: 付文俊 | E39: 菏泽学院 | F39: 汉语言文学 | G39: 24010100819 | H39: 77.00 | J39: 77.00 | K39: 是 | L39: 90.20 | M39: 81.80 | N39: =SUM(L39:M39) -> 172.00
A40: 37 | B40: 汉语言文学 | C40: 27 | D40: 安梦雨 | E40: 临沂大学 | F40: 汉语言文学 | G40: 24010100321 | H40: 77.00 | J40: 77.00 | K40: 是 | L40: 81.00 | M40: 85.00 | N40: =SUM(L40:M40) -> 166.00
A41: 38 | B41: 汉语言文学 | C41: 28 | D41: 曲艺 | E41: 鲁东大学 | F41: 汉语言文学 | G41: 24010100520 | H41: 76.50 | J41: 76.50 | K41: 否
A42: 39 | B42: 汉语言文学 | C42: 29 | D42: 刘慧 | E42: 青岛大学 | F42: 汉语言文学 | G42: 24010101523 | H42: 76.00 | J42: 76.00 | K42: 是 | L42: 92.00 | M42: 80.00 | N42: =SUM(L42:M42) -> 172.00
A43: 40 | B43: 汉语言文学 | C43: 30 | D43: 娄奕馨 | E43: 潍坊学院 | F43: 汉语言文学 | G43: 24010100622 | H43: 76.00 | J43: 76.00 | K43: 是 | L43: 74.00 | M43: 85.00 | N43: =SUM(L43:M43) -> 159.00
A44: 41 | B44: 汉语言文学 | C44: 31 | D44: 张美荣 | E44: 临沂大学 | F44: 汉语言文学 | G44: 24010100329 | H44: 76.00 | J44: 76.00 | K44: 是 | L44: 83.00 | M44: 75.00 | N44: =SUM(L44:M44) -> 158.00
A45: 42 | B45: 汉语言文学 | C45: 32 | D45: 曹文娜 | E45: 济宁学院 | F45: 汉语言文学 | G45: 24010101309 | H45: 76.00 | J45: 76.00 | K45: 是 | L45: 79.00 | M45: 68.00 | N45: =SUM(L45:M45) -> 147.00
A46: 43 | B46: 汉语言文学 | C46: 33 | D46: 杨佳乐 | E46: 青岛大学 | F46: 汉语言文学 | G46: 24010101228 | H46: 75.50 | J46: 75.50 | K46: 否
A47: 44 | B47: 汉语言文学 | C47: 34 | D47: 孔奥美 | E47: 聊城大学 | F47: 汉语言文学 | G47: 24010100714 | H47: 75.00 | J47: 75.00 | K47: 是 | L47: 92.00 | M47: 94.00 | N47: =SUM(L47:M47) -> 186.00
A48: 45 | B48: 汉语言文学 | C48: 35 | D48: 石永旭 | E48: 滨州学院 | F48: 汉语言文学 | G48: 24010100225 | H48: 75.00 | J48: 75.00 | K48: 是 | L48: 85.32 | M48: 82.30 | N48: =SUM(L48:M48) -> 167.62
A49: 46 | B49: 汉语言文学 | C49: 36 | D49: 王婕 | E49: 聊城大学 | F49: 汉语言文学 | G49: 24010100316 | H49: 74.00 | J49: 74.00 | K49: 否
A50: 47 | B50: 汉语言文学 | C50: 37 | D50: 刘力瑞 | E50: 德州学院 | F50: 汉语言文学 | G50: 24010100222 | H50: 73.50 | J50: 73.50 | K50: 否
A51: 48 | B51: 汉语言文学 | C51: 38 | D51: 李珺如 | E51: 齐鲁师范学院 | F51: 汉语言文学 | G51: 24010100514 | H51: 73.00 | J51: 73.00 | K51: 是 | L51: 95.00 | M51: 100.00 | N51: =SUM(L51:M51) -> 195.00
A52: 49 | B52: 汉语言文学 | C52: 39 | D52: 张晓晴 | E52: 菏泽学院 | F52: 汉语言文学 | G52: 24010101016 | H52: 73.00 | J52: 73.00 | K52: 是 | L52: 72.60 | M52: 70.60 | N52: =SUM(L52:M52) -> 143.20
A53: 50 | B53: 汉语言文学 | C53: 40 | D53: 代沛鑫 | E53: 聊城大学 | F53: 汉语言文学 | G53: 24010101117 | H53: 73.00 | J53: 73.00 | K53: 是 | L53: 60.00 | M53: 69.00 | N53: =SUM(L53:M53) -> 129.00
A54: 51 | B54: 汉语言文学 | C54: 41 | D54: 杨广倩 | E54: 德州学院 | F54: 汉语言文学 | G54: 24010100504 | H54: 72.50 | J54: 72.50 | K54: 是 | L54: 78.60 | M54: 84.40 | N54: =SUM(L54:M54) -> 163.00
A55: 52 | B55: 汉语言文学 | C55: 42 | D55: 路云涵 | E55: 临沂大学 | F55: 汉语言文学 | G55: 24010101209 | H55: 72.50 | J55: 72.50 | K55: 是 | L55: 80.00 | M55: 68.00 | N55: 148.00
A56: 53 | B56: 汉语言文学 | C56: 43 | D56: 胥欣月 | E56: 聊城大学 | F56: 汉语言文学 | G56: 24010101602 | H56: 72.50 | J56: 72.50 | K56: 是 | L56: 60.00 | M56: 83.00 | N56: 143.00
A57: 54 | B57: 汉语言文学 | C57: 44 | D57: 欧家琪 | E57: 山东师范大学 | F57: 汉语言文学 | G57: 24010100620 | H57: 72.00 | J57: 72.00 | K57: 是 | L57: 87.00 | M57: 73.00 | N57: 160.00
A58: 55 | B58: 汉语言文学 | C58: 45 | D58: 任国萍 | E58: 济宁学院 | F58: 汉语言文学 | G58: 24010100521 | H58: 72.00 | J58: 72.00 | K58: 是 | L58: 72.00 | M58: 70.00 | N58: 142.00
A59: 56 | B59: 汉语言文学 | C59: 46 | D59: 赵志博 | E59: 济宁学院 | F59: 汉语言文学 | G59: 24010100924 | H59: 71.50 | J59: 71.50 | K59: 是 | L59: 89.00 | M59: 87.00 | N59: 176.00
A60: 57 | B60: 汉语言文学 | C60: 47 | D60: 张佳乐 | E60: 滨州学院 | F60: 汉语言文学 | G60: 24010100305 | H60: 71.50 | J60: 71.50 | K60: 是 | L60: 79.44 | M60: 82.53 | N60: 161.97
A61: 58 | B61: 汉语言文学 | C61: 48 | D61: 林一凡 | E61: 泰山学院 | F61: 汉语言文学 | G61: 24010100820 | H61: 71.00 | J61: 71.00 | K61: 否
A62: 59 | B62: 汉语言文学 | C62: 49 | D62: 张硕 | E62: 齐鲁师范学院 | F62: 汉语言文学 | G62: 24010101414 | H62: 70.50 | J62: 70.50 | K62: 否
A63: 60 | B63: 汉语言文学 | C63: 50 | D63: 孙悦 | E63: 济南大学 | F63: 汉语言文学 | G63: 24010100307 | H63: 70.00 | J63: 70.00 | K63: 否
A64: 61 | B64: 汉语言文学 | C64: 51 | D64: 童梦瑶 | E64: 鲁东大学 | F64: 汉语言文学 | G64: 24010101021 | H64: 69.50 | J64: 69.50 | K64: 否
A65: 62 | B65: 汉语言文学 | C65: 52 | D65: 尹成鸿 | E65: 临沂大学 | F65: 汉语言文学 | G65: 24010100703 | H65: 69.00 | J65: 69.00 | K65: 是 | L65: 82.00 | M65: 79.00 | N65: =SUM(L65:M65) -> 161.00
A66: 63 | B66: 汉语言文学 | C66: 53 | D66: 谢春雨 | E66: 聊城大学 | F66: 汉语言文学 | G66: 24010100806 | H66: 69.00 | J66: 69.00 | K66: 是 | L66: 71.00 | M66: 76.00 | N66: =SUM(L66:M66) -> 147.00
A67: 64 | B67: 汉语言文学 | C67: 54 | D67: 付雨豪 | E67: 临沂大学 | F67: 汉语言文学 | G67: 24010101520 | H67: 69.00 | J67: 69.00 | K67: 是 | L67: 74.00 | M67: 67.00 | N67: =SUM(L67:M67) -> 141.00
A68: 65 | B68: 汉语言文学 | C68: 55 | D68: 罗媛欣 | E68: 德州学院 | F68: 汉语言文学 | G68: 24010100529 | H68: 68.50 | J68: =H68+I68 -> 68.50 | K68: 否
A69: 66 | B69: 汉语言文学 | C69: 56 | D69: 张虹 | E69: 临沂大学 | F69: 汉语言文学 | G69: 24010101009 | H69: 68.00 | J69: 68.00 | K69: 否
A70: 67 | B70: 汉语言文学 | C70: 57 | D70: 杨君豪 | E70: 齐鲁师范学院 | F70: 汉语言文学 | G70: 24010101330 | H70: 67.50 | J70: 67.50 | K70: 是 | L70: 91.00 | M70: 100.00 | N70: =SUM(L70:M70) -> 191.00
A71: 68 | B71: 汉语言文学 | C71: 58 | D71: 姜妤 | E71: 泰山学院 | F71: 汉语言文学 | G71: 24010100408 | H71: 67.50 | J71: 67.50 | K71: 是 | L71: 未提交 | M71: 未提交
A72: 69 | B72: 汉语言文学 | C72: 59 | D72: 王宇腾 | E72: 潍坊学院 | F72: 汉语言文学 | G72: 24010101125 | H72: 67.00 | J72: 67.00 | K72: 否
A73: 70 | B73: 汉语言文学 | C73: 60 | D73: 鞠腾钰 | E73: 德州学院 | F73: 汉语言文学 | G73: 24010100209 | H73: 66.00 | J73: 66.00 | K73: 否
A74: 71 | B74: 汉语言文学 | C74: 61 | D74: 董鑫宇 | E74: 德州学院 | F74: 汉语言文学 | G74: 24010100803 | H74: 65.50 | J74: 65.50 | K74: 否
A75: 72 | B75: 汉语言文学 | C75: 62 | D75: 王端博 | E75: 青岛大学 | F75: 汉语言文学 | G75: 24010100626 | H75: 65.00 | J75: 65.00 | K75: 否
A76: 73 | B76: 汉语言文学 | C76: 63 | D76: 王晓涵 | E76: 山东师范大学 | F76: 汉语言文学 | G76: 24010101226 | H76: 62.50 | J76: 62.50 | K76: 否
A77: 74 | B77: 汉语言文学 | C77: 64 | D77: 许钰晗 | E77: 鲁东大学 | F77: 汉语言文学 | G77: 24010101507 | H77: 62.00 | J77: 62.00 | K77: 否
A78: 75 | B78: 化学 | C78: 1 | D78: 康俊妍 | E78: 山东师范大学 | F78: 化学 | G78: 24010101305 | H78: 83.50 | I78: 12.00 | J78: 95.50 | K78: 否
A79: 76 | B79: 化学 | C79: 2 | D79: 公旭阳 | E79: 鲁东大学 | F79: 化学 | G79: 24010100906 | H79: 83.00 | J79: 83.00 | K79: 否
A80: 77 | B80: 化学 | C80: 3 | D80: 王英豪 | E80: 山东理工大学 | F80: 化学 | G80: 24010100327 | H80: 79.00 | J80: 79.00 | K80: 否
A81: 78 | B81: 化学 | C81: 4 | D81: 焦建晖 | E81: 曲阜师范大学 | F81: 化学 | G81: 24010101025 | H81: 75.50 | J81: 75.50 | K81: 否
A82: 79 | B82: 化学 | C82: 5 | D82: 李玉冰 | E82: 聊城大学 | F82: 化学 | G82: 24010100428 | H82: 74.50 | J82: 74.50 | K82: 否
A83: 80 | B83: 化学 | C83: 6 | D83: 张靖雪 | E83: 鲁东大学 | F83: 化学 | G83: 24010100929 | H83: 72.50 | J83: 72.50 | K83: 否
A84: 81 | B84: 化学 | C84: 7 | D84: 梁馨 | E84: 鲁东大学 | F84: 化学 | G84: 24010100423 | H84: 71.00 | J84: 71.00 | K84: 否
A85: 82 | B85: 化学 | C85: 8 | D85: 王明月 | E85: 曲阜师范大学 | F85: 化学 | G85: 24010100224 | H85: 70.50 | J85: 70.50 | K85: 否
A86: 83 | B86: 化学 | C86: 9 | D86: 续龙彬 | E86: 聊城大学 | F86: 化学 | G86: 24010100526 | H86: 63.00 | J86: 63.00 | K86: 否
A87: 84 | B87: 历史学 | C87: 1 | D87: 王梅 | E87: 曲阜师范大学 | F87: 历史学 | G87: 24010100507 | H87: 85.00 | J87: 85.00 | K87: 否
A88: 85 | B88: 历史学 | C88: 2 | D88: 刘含旭 | E88: 山东师范大学 | F88: 历史学 | G88: 24010100719 | H88: 77.50 | J88: 77.50 | K88: 否
A89: 86 | B89: 历史学 | C89: 3 | D89: 张苏 | E89: 曲阜师范大学 | F89: 历史学 | G89: 24010100407 | H89: 77.00 | J89: 77.00 | K89: 否
A90: 87 | B90: 历史学 | C90: 4 | D90: 万一鸣 | E90: 聊城大学 | F90: 历史学 | G90: 24010100911 | H90: 76.50 | J90: 76.50 | K90: 否
A91: 88 | B91: 历史学 | C91: 5 | D91: 杜依冉 | E91: 济南大学 | F91: 历史学 | G91: 24010100323 | H91: 75.00 | J91: 75.00 | K91: 否
A92: 89 | B92: 历史学 | C92: 6 | D92: 孙嘉良 | E92: 曲阜师范大学 | F92: 历史学 | G92: 24010101529 | H92: 73.50 | J92: 73.50 | K92: 否
A93: 90 | B93: 历史学 | C93: 7 | D93: 田宇宽 | E93: 聊城大学 | F93: 历史学 | G93: 24010100902 | H93: 43.00 | J93: 43.00 | K93: 否
A94: 91 | B94: 美术学 | C94: 1 | D94: 郭泽未 | E94: 曲阜师范大学 | F94: 美术学 | G94: 24010100817 | H94: 66.00 | J94: 66.00 | K94: 否
A95: 92 | B95: 美术学 | C95: 2 | D95: 胡国通 | E95: 山东师范大学 | F95: 美术学 | G95: 24010100430 | H95: 62.00 | J95: 62.00 | K95: 否
A96: 93 | B96: 生物科学 | C96: 1 | D96: 赵祎萌 | E96: 聊城大学 | F96: 生物科学 | G96: 24010101317 | H96: 83.00 | J96: 83.00 | K96: 否
A97: 94 | B97: 生物科学 | C97: 2 | D97: 刘雨凡 | E97: 枣庄学院 | F97: 生物科学 | G97: 24010100921 | H97: 79.00 | J97: 79.00 | K97: 否
A98: 95 | B98: 生物科学 | C98: 3 | D98: 王子然 | E98: 临沂大学 | F98: 生物科学 | G98: 24010100516 | H98: 75.50 | J98: 75.50 | K98: 否
A99: 96 | B99: 生物科学 | C99: 4 | D99: 潘贵萍 | E99: 曲阜师范大学 | F99: 生物科学 | G99: 24010100208 | H99: 75.00 | J99: 75.00 | K99: 否
A100: 97 | B100: 生物科学 | C100: 5 | D100: 孔宇鑫 | E100: 山东师范大学 | F100: 生物科学 | G100: 24010100422 | H100: 73.00 | J100: 73.00 | K100: 否
A101: 98 | B101: 生物科学 | C101: 6 | D101: 吴雪丰 | E101: 枣庄学院 | F101: 生物科学 | G101: 24010100530 | H101: 63.50 | J101: 63.50 | K101: 否
A102: 99 | B102: 生物科学 | C102: 7 | D102: 朱君毅 | E102: 枣庄学院 | F102: 生物科学 | G102: 24010101328 | H102: 54.00 | J102: 54.00 | K102: 否
A103: 100 | B103: 数学与应用数学 | C103: 1 | D103: 宋思凡 | E103: 山东师范大学 | F103: 数学与应用数学 | G103: 24010100723 | H103: 83.00 | J103: 83.00 | K103: 否
A104: 101 | B104: 数学与应用数学 | C104: 2 | D104: 岳耀鲁 | E104: 济宁学院 | F104: 数学与应用数学 | G104: 24010100619 | H104: 81.50 | J104: 81.50 | K104: 否
A105: 102 | B105: 数学与应用数学 | C105: 3 | D105: 杨悦 | E105: 聊城大学 | F105: 数学与应用数学 | G105: 24010101224 | H105: 81.00 | J105: 81.00 | K105: 否
A106: 103 | B106: 数学与应用数学 | C106: 4 | D106: 王淑静 | E106: 济宁学院 | F106: 数学与应用数学 | G106: 24010101230 | H106: 79.50 | J106: 79.50 | K106: 是 | L106: 98.00 | M106: 85.00 | N106: =SUM(L106:M106) -> 183.00
A107: 104 | B107: 数学与应用数学 | C107: 5 | D107: 赵恒兵 | E107: 聊城大学 | F107: 数学与应用数学 | G107: 24010101019 | H107: 79.50 | J107: 79.50 | K107: 是 | L107: 94.00 | M107: 81.00 | N107: =SUM(L107:M107) -> 175.00
A108: 105 | B108: 数学与应用数学 | C108: 6 | D108: 段又文 | E108: 山东师范大学 | F108: 数学与应用数学 | G108: 24010100215 | H108: 79.50 | J108: 79.50 | K108: 是 | L108: 80.00 | M108: 66.00 | N108: =SUM(L108:M108) -> 146.00
A109: 106 | B109: 数学与应用数学 | C109: 7 | D109: 曹诗宇 | E109: 临沂大学 | F109: 数学与应用数学 | G109: 24010100403 | H109: 79.00 | J109: 79.00 | K109: 否
A110: 107 | B110: 数学与应用数学 | C110: 8 | D110: 曹振翔 | E110: 鲁东大学 | F110: 数学与应用数学 | G110: 24010100210 | H110: 77.00 | J110: 77.00 | K110: 否
A111: 108 | B111: 数学与应用数学 | C111: 9 | D111: 孙裕硕 | E111: 鲁东大学 | F111: 数学与应用数学 | G111: 24010100213 | H111: 76.00 | J111: 76.00 | K111: 是 | L111: 92.00 | M111: 88.00 | N111: =SUM(L111:M111) -> 180.00
A112: 109 | B112: 数学与应用数学 | C112: 10 | D112: 吴培隆 | E112: 滨州学院 | F112: 数学与应用数学 | G112: 24010100525 | H112: 76.00 | J112: 76.00 | K112: 是 | L112: 85.40 | M112: 81.20 | N112: =SUM(L112:M112) -> 166.60
A113: 110 | B113: 数学与应用数学 | C113: 11 | D113: 许艺卓 | E113: 山东师范大学 | F113: 数学与应用数学 | G113: 24010100824 | H113: 76.00 | J113: 76.00 | K113: 是 | L113: 未提交 | M113: 未提交
A114: 111 | B114: 数学与应用数学 | C114: 12 | D114: 孟子宇 | E114: 济宁学院 | F114: 数学与应用数学 | G114: 24010100901 | H114: 70.00 | I114: 6.00 | J114: 76.00 | K114: 否
A115: 112 | B115: 数学与应用数学 | C115: 13 | D115: 刘畅 | E115: 济宁学院 | F115: 数学与应用数学 | G115: 24010101508 | H115: 75.50 | J115: 75.50 | K115: 是 | L115: 88.00 | M115: 75.00 | N115: =SUM(L115:M115) -> 163.00
A116: 113 | B116: 数学与应用数学 | C116: 14 | D116: 王明创 | E116: 聊城大学 | F116: 数学与应用数学 | G116: 24010101521 | H116: 75.50 | J116: 75.50 | K116: 是 | L116: 67.00 | M116: 60.00 | N116: =SUM(L116:M116) -> 127.00
A117: 114 | B117: 数学与应用数学 | C117: 15 | D117: 郑淑娴 | E117: 济宁学院 | F117: 数学与应用数学 | G117: 24010101202 | H117: 75.00 | J117: 75.00 | K117: 是 | L117: 88.00 | M117: 74.00 | N117: =SUM(L117:M117) -> 162.00
A118: 115 | B118: 数学与应用数学 | C118: 16 | D118: 蔡坤 | E118: 曲阜师范大学 | F118: 数学与应用数学 | G118: 24010100509 | H118: 75.00 | J118: 75.00 | K118: 是 | L118: 74.00 | M118: 74.00 | N118: =SUM(L118:M118) -> 148.00
A119: 116 | B119: 数学与应用数学 | C119: 17 | D119: 张舟航 | E119: 山东理工大学 | F119: 数学与应用数学 | G119: 24010100811 | H119: 74.00 | J119: 74.00 | K119: 否
A120: 117 | B120: 数学与应用数学 | C120: 18 | D120: 李凤祥 | E120: 德州学院 | F120: 数学与应用数学 | G120: 24010100506 | H120: 73.50 | J120: 73.50 | K120: 是 | L120: 86.00 | M120: 89.40 | N120: =SUM(L120:M120) -> 175.40
A121: 118 | B121: 数学与应用数学 | C121: 19 | D121: 尚思齐 | E121: 济南大学 | F121: 数学与应用数学 | G121: 24010100628 | H121: 73.50 | J121: 73.50 | K121: 是 | L121: 74.00 | M121: 75.00 | N121: =SUM(L121:M121) -> 149.00
A122: 119 | B122: 数学与应用数学 | C122: 20 | D122: 张辉洋 | E122: 山东师范大学 | F122: 数学与应用数学 | G122: 24010101424 | H122: 73.50 | J122: 73.50 | K122: 是 | L122: 84.00 | M122: 60.00 | N122: =SUM(L122:M122) -> 144.00
A123: 120 | B123: 数学与应用数学 | C123: 21 | D123: 张天泽 | E123: 泰山学院 | F123: 数学与应用数学 | G123: 24010100718 | H123: 67.00 | I123: 6.00 | J123: 73.00 | K123: 否
A124: 121 | B124: 数学与应用数学 | C124: 22 | D124: 武广娴 | E124: 临沂大学 | F124: 数学与应用数学 | G124: 24010100713 | H124: 72.50 | J124: 72.50 | K124: 否
A125: 122 | B125: 数学与应用数学 | C125: 23 | D125: 范兴 | E125: 齐鲁师范学院 | F125: 数学与应用数学 | G125: 24010101605 | H125: 68.50 | I125: 4.00 | J125: 72.50 | K125: 否
A126: 123 | B126: 数学与应用数学 | C126: 24 | D126: 陈新 | E126: 菏泽学院 | F126: 数学与应用数学 | G126: 24010100317 | H126: 72.00 | J126: 72.00 | K126: 是 | L126: 95.80 | M126: 93.00 | N126: =SUM(L126:M126) -> 188.80
A127: 124 | B127: 数学与应用数学 | C127: 25 | D127: 苏晓彤 | E127: 滨州学院 | F127: 数学与应用数学 | G127: 24010101028 | H127: 72.00 | J127: 72.00 | K127: 是 | L127: 83.60 | M127: 74.00 | N127: =SUM(L127:M127) -> 157.60
A128: 125 | B128: 数学与应用数学 | C128: 26 | D128: 潘羿飞 | E128: 菏泽学院 | F128: 数学与应用数学 | G128: 24010101212 | H128: 72.00 | J128: 72.00 | K128: 是 | L128: 69.20 | M128: 88.30 | N128: =SUM(L128:M128) -> 157.50
A129: 126 | B129: 数学与应用数学 | C129: 27 | D129: 张太文 | E129: 潍坊学院 | F129: 数学与应用数学 | G129: 24010100707 | H129: 71.50 | J129: 71.50 | K129: 否
A130: 127 | B130: 数学与应用数学 | C130: 28 | D130: 吴昱静 | E130: 曲阜师范大学 | F130: 数学与应用数学 | G130: 24010101010 | H130: 71.00 | J130: 71.00 | K130: 是 | L130: 77.00 | M130: 89.00 | N130: =SUM(L130:M130) -> 166.00
A131: 128 | B131: 数学与应用数学 | C131: 29 | D131: 王文浩 | E131: 曲阜师范大学 | F131: 数学与应用数学 | G131: 24010101421 | H131: 71.00 | J131: 71.00 | K131: 是 | L131: 79.00 | M131: 84.00 | N131: =SUM(L131:M131) -> 163.00
A132: 129 | B132: 数学与应用数学 | C132: 30 | D132: 侯璐萌 | E132: 鲁东大学 | F132: 数学与应用数学 | G132: 24010100630 | H132: 69.50 | J132: =H132+I132 -> 69.50 | K132: 是 | L132: 92.00 | M132: 85.00 | N132: =SUM(L132:M132) -> 177.00
A133: 130 | B133: 数学与应用数学 | C133: 31 | D133: 冯昌皓 | E133: 临沂大学 | F133: 数学与应用数学 | G133: 24010101204 | H133: 69.50 | J133: 69.50 | K133: 是 | L133: 85.00 | M133: 80.00 | N133: =SUM(L133:M133) -> 165.00
A134: 131 | B134: 数学与应用数学 | C134: 32 | D134: 汤馥祯 | E134: 齐鲁师范学院 | F134: 数学与应用数学 | G134: 24010100805 | H134: 69.00 | J134: 69.00 | K134: 否
A135: 132 | B135: 数学与应用数学 | C135: 33 | D135: 李好鸣 | E135: 德州学院 | F135: 数学与应用数学 | G135: 24010100306 | H135: 68.50 | J135: 68.50 | K135: 是 | L135: 82.50 | M135: 86.00 | N135: =SUM(L135:M135) -> 168.50
A136: 133 | B136: 数学与应用数学 | C136: 34 | D136: 赵吉成 | E136: 泰山学院 | F136: 数学与应用数学 | G136: 24010101303 | H136: 68.50 | J136: 68.50 | K136: 是 | L136: 69.00 | M136: 89.00 | N136: 158.00
A137: 134 | B137: 数学与应用数学 | C137: 35 | D137: 胡皓宇 | E137: 鲁东大学 | F137: 数学与应用数学 | G137: 24010100604 | H137: 68.50 | J137: 68.50 | K137: 是 | L137: 86.00 | M137: 66.00 | N137: 152.00
A138: 135 | B138: 数学与应用数学 | C138: 36 | D138: 张骏凯 | E138: 临沂大学 | F138: 数学与应用数学 | G138: 24010100814 | H138: 68.50 | J138: 68.50 | K138: 是 | L138: 66.00 | M138: 73.00 | N138: 139.00
A139: 136 | B139: 数学与应用数学 | C139: 37 | D139: 曹龙 | E139: 齐鲁师范学院 | F139: 数学与应用数学 | G139: 24010101106 | H139: 67.00 | J139: 67.00 | K139: 是 | L139: 87.00 | M139: 88.00 | N139: 175.00
A140: 137 | B140: 数学与应用数学 | C140: 38 | D140: 张浩明 | E140: 临沂大学 | F140: 数学与应用数学 | G140: 24010101130 | H140: 67.00 | J140: 67.00 | K140: 是 | L140: 75.00 | M140: 80.00 | N140: 155.00
A141: 138 | B141: 数学与应用数学 | C141: 39 | D141: 牟泽泉 | E141: 济宁学院 | F141: 数学与应用数学 | G141: 24010100616 | H141: 66.00 | J141: 66.00 | K141: 否
A142: 139 | B142: 数学与应用数学 | C142: 40 | D142: 魏丽娜 | E142: 山东理工大学 | F142: 数学与应用数学 | G142: 24010101219 | H142: 65.00 | J142: 65.00 | K142: 是 | L142: 82.00 | M142: 96.40 | N142: =SUM(L142:M142) -> 178.40
A143: 140 | B143: 数学与应用数学 | C143: 41 | D143: 孙一菲 | E143: 济南大学 | F143: 数学与应用数学 | G143: 24010101111 | H143: 65.00 | J143: 65.00 | K143: 是 | L143: 68.00 | M143: 65.00 | N143: 133.00
A144: 141 | B144: 数学与应用数学 | C144: 42 | D144: 金正阳 | E144: 鲁东大学 | F144: 数学与应用数学 | G144: 24010101324 | H144: 64.50 | J144: 64.50 | K144: 是 | L144: 79.00 | M144: 67.00 | N144: 146.00
A145: 142 | B145: 数学与应用数学 | C145: 43 | D145: 张孜昊 | E145: 山东师范大学 | F145: 数学与应用数学 | G145: 24010101006 | H145: 64.50 | J145: 64.50 | K145: 是 | L145: 79.00 | M145: 62.00 | N145: 141.00
A146: 143 | B146: 数学与应用数学 | C146: 44 | D146: 毕峻臣 | E146: 山东理工大学 | F146: 数学与应用数学 | G146: 24010101405 | H146: 64.00 | J146: 64.00 | K146: 是 | L146: 72.00 | M146: 96.00 | N146: 168.00
A147: 144 | B147: 数学与应用数学 | C147: 45 | D147: 武季然 | E147: 鲁东大学 | F147: 数学与应用数学 | G147: 24010101122 | H147: 64.00 | J147: 64.00 | K147: 是 | L147: 75.00 | M147: 72.00 | N147: 147.00
A148: 145 | B148: 数学与应用数学 | C148: 46 | D148: 甘海龙 | E148: 聊城大学 | F148: 数学与应用数学 | G148: 24010100920 | H148: 64.00 | J148: 64.00 | K148: 是 | L148: 61.00 | M148: 80.00 | N148: 141.00
A149: 146 | B149: 数学与应用数学 | C149: 47 | D149: 詹庆江 | E149: 济南大学 | F149: 数学与应用数学 | G149: 24010100702 | H149: 62.00 | J149: 62.00 | K149: 否
A150: 147 | B150: 数学与应用数学 | C150: 48 | D150: 李永恒 | E150: 山东理工大学 | F150: 数学与应用数学 | G150: 24010100503 | H150: 61.00 | J150: 61.00 | K150: 是 | L150: 82.00 | M150: 90.80 | N150: =SUM(L150:M150) -> 172.80
A151: 148 | B151: 数学与应用数学 | C151: 49 | D151: 赵欣宇 | E151: 聊城大学 | F151: 数学与应用数学 | G151: 24010100808 | H151: 61.00 | J151: 61.00 | K151: 是 | L151: 64.00 | M151: 74.00 | N151: =SUM(L151:M151) -> 138.00
A152: 149 | B152: 数学与应用数学 | C152: 50 | D152: 李冰 | E152: 潍坊学院 | F152: 数学与应用数学 | G152: 24010100519 | H152: 60.50 | J152: 60.50 | K152: 否
A153: 150 | B153: 数学与应用数学 | C153: 51 | D153: 郑羽含 | E153: 鲁东大学 | F153: 数学与应用数学 | G153: 24010101127 | H153: 60.00 | J153: 60.00 | K153: 否
A154: 151 | B154: 数学与应用数学 | C154: 52 | D154: 陈瑞新 | E154: 德州学院 | F154: 数学与应用数学 | G154: 24010101319 | H154: 59.50 | J154: 59.50 | K154: 是 | L154: 81.00 | M154: 77.40 | N154: =SUM(L154:M154) -> 158.40
A155: 152 | B155: 数学与应用数学 | C155: 53 | D155: 王书言 | E155: 聊城大学 | F155: 数学与应用数学 | G155: 24010101419 | H155: 59.50 | J155: 59.50 | K155: 是 | L155: 76.00 | M155: 60.00 | N155: =SUM(L155:M155) -> 136.00
A156: 153 | B156: 数学与应用数学 | C156: 54 | D156: 杨超 | E156: 山东理工大学 | F156: 数学与应用数学 | G156: 24010101114 | H156: 56.50 | J156: 56.50 | K156: 否
A157: 154 | B157: 数学与应用数学 | C157: 55 | D157: 甘海洋 | E157: 齐鲁师范学院 | F157: 数学与应用数学 | G157: 24010101525 | H157: 56.00 | J157: 56.00 | K157: 是 | L157: 93.00 | M157: 81.00 | N157: =SUM(L157:M157) -> 174.00
A158: 155 | B158: 数学与应用数学 | C158: 56 | D158: 马海龙 | E158: 滨州学院 | F158: 数学与应用数学 | G158: 24010100823 | H158: 56.00 | J158: 56.00 | K158: 是 | L158: 83.40 | M158: 82.80 | N158: =SUM(L158:M158) -> 166.20
A159: 156 | B159: 数学与应用数学 | C159: 57 | D159: 李厚德 | E159: 潍坊学院 | F159: 数学与应用数学 | G159: 24010101020 | H159: 55.50 | J159: 55.50 | K159: 否
A160: 157 | B160: 数学与应用数学 | C160: 58 | D160: 褚玉玮 | E160: 滨州学院 | F160: 数学与应用数学 | G160: 24010101502 | H160: 0.00 | J160: 0.00 | K160: 否
A161: 158 | B161: 思想政治教育 | C161: 1 | D161: 卫子寒 | E161: 聊城大学 | F161: 思想政治教育 | G161: 24010101413 | H161: 85.50 | J161: 85.50 | K161: 否
A162: 159 | B162: 思想政治教育 | C162: 2 | D162: 田润 | E162: 聊城大学 | F162: 思想政治教育 | G162: 24010101008 | H162: 82.00 | J162: 82.00 | K162: 否
A163: 160 | B163: 思想政治教育 | C163: 3 | D163: 杜子微 | E163: 济南大学 | F163: 思想政治教育 | G163: 24010101108 | H163: 76.50 | J163: 76.50 | K163: 是 | L163: 90.00 | M163: 93.00 | N163: =SUM(L163:M163) -> 183.00
A164: 161 | B164: 思想政治教育 | C164: 4 | D164: 周宇宁 | E164: 聊城大学 | F164: 思想政治教育 | G164: 24010101115 | H164: 76.50 | J164: 76.50 | K164: 是 | L164: 69.00 | M164: 85.00 | N164: =SUM(L164:M164) -> 154.00
A165: 162 | B165: 思想政治教育 | C165: 5 | D165: 魏益冉 | E165: 曲阜师范大学 | F165: 思想政治教育 | G165: 24010100910 | H165: 76.00 | J165: 76.00 | K165: 否
A166: 163 | B166: 思想政治教育 | C166: 6 | D166: 李晓璇 | E166: 泰山学院 | F166: 思想政治教育 | G166: 24010101023 | H166: 75.00 | J166: 75.00 | K166: 是 | L166: 74.00 | M166: 98.00 | N166: =SUM(L166:M166) -> 172.00
A167: 164 | B167: 思想政治教育 | C167: 7 | D167: 张艾新 | E167: 济南大学 | F167: 思想政治教育 | G167: 24010100221 | H167: 75.00 | J167: 75.00 | K167: 是 | L167: 81.00 | M167: 86.00 | N167: =SUM(L167:M167) -> 167.00
A168: 165 | B168: 思想政治教育 | C168: 8 | D168: 潘微 | E168: 聊城大学 | F168: 思想政治教育 | G168: 24010101223 | H168: 73.00 | J168: 73.00 | K168: 否
A169: 166 | B169: 思想政治教育 | C169: 9 | D169: 孔家兴 | E169: 聊城大学 | F169: 思想政治教育 | G169: 24010100830 | H169: 72.50 | J169: 72.50 | K169: 否
A170: 167 | B170: 思想政治教育 | C170: 10 | D170: 陈智伟 | E170: 聊城大学 | F170: 思想政治教育 | G170: 24010101027 | H170: 72.00 | J170: 72.00 | K170: 否
A171: 168 | B171: 思想政治教育 | C171: 11 | D171: 单文英 | E171: 曲阜师范大学 | F171: 思想政治教育 | G171: 24010101109 | H171: 70.50 | J171: 70.50 | K171: 否
A172: 169 | B172: 思想政治教育 | C172: 12 | D172: 王永强 | E172: 聊城大学 | F172: 思想政治教育 | G172: 24010100405 | H172: 70.00 | J172: 70.00 | K172: 是 | L172: 88.00 | M172: 84.00 | N172: =SUM(L172:M172) -> 172.00
A173: 170 | B173: 思想政治教育 | C173: 13 | D173: 冷李睿 | E173: 聊城大学 | F173: 思想政治教育 | G173: 24010100609 | H173: 70.00 | J173: 70.00 | K173: 是 | L173: 67.00 | M173: 82.00 | N173: =SUM(L173:M173) -> 149.00
A174: 171 | B174: 思想政治教育 | C174: 14 | D174: 孟繁慧 | E174: 曲阜师范大学 | F174: 思想政治教育 | G174: 24010100602 | H174: 69.00 | J174: 69.00 | K174: 否
A175: 172 | B175: 思想政治教育 | C175: 15 | D175: 李舒琪 | E175: 曲阜师范大学 | F175: 思想政治教育 | G175: 24010101313 | H175: 68.50 | J175: 68.50 | K175: 否
A176: 173 | B176: 思想政治教育 | C176: 16 | D176: 柴英奇 | E176: 聊城大学 | F176: 思想政治教育 | G176: 24010101005 | H176: 67.50 | J176: 67.50 | K176: 否
A177: 174 | B177: 思想政治教育 | C177: 17 | D177: 张杏运 | E177: 聊城大学 | F177: 思想政治教育 | G177: 24010100712 | H177: 67.00 | J177: 67.00 | K177: 否
A178: 175 | B178: 思想政治教育 | C178: 18 | D178: 刘璇 | E178: 曲阜师范大学 | F178: 思想政治教育 | G178: 24010101322 | H178: 65.50 | J178: 65.50 | K178: 是 | L178: 88.00 | M178: 62.00 | N178: =SUM(L178:M178) -> 150.00
A179: 176 | B179: 思想政治教育 | C179: 19 | D179: 倪煜群 | E179: 聊城大学 | F179: 思想政治教育 | G179: 24010100618 | H179: 65.50 | J179: 65.50 | K179: 是 | L179: 64.00 | M179: 81.00 | N179: =SUM(L179:M179) -> 145.00
A180: 177 | B180: 思想政治教育 | C180: 20 | D180: 于睿 | E180: 济南大学 | F180: 思想政治教育 | G180: 24010100318 | H180: 65.50 | J180: 65.50 | K180: 是 | L180: 63.00 | M180: 74.00 | N180: =SUM(L180:M180) -> 137.00
A181: 178 | B181: 思想政治教育 | C181: 21 | D181: 宋文静 | E181: 济南大学 | F181: 思想政治教育 | G181: 24010100206 | H181: 65.00 | J181: 65.00 | K181: 否
A182: 179 | B182: 思想政治教育 | C182: 22 | D182: 冯紫晗 | E182: 山东师范大学 | F182: 思想政治教育 | G182: 24010101227 | H182: 64.00 | J182: 64.00 | K182: 否
A183: 180 | B183: 思想政治教育 | C183: 23 | D183: 初栋雨 | E183: 泰山学院 | F183: 思想政治教育 | G183: 24010100301 | H183: 63.50 | J183: 63.50 | K183: 否
A184: 181 | B184: 思想政治教育 | C184: 24 | D184: 焦阳 | E184: 泰山学院 | F184: 思想政治教育 | G184: 24010101514 | H184: 60.00 | J184: 60.00 | K184: 否
A185: 182 | B185: 特殊教育 | C185: 1 | D185: 闫书御 | E185: 潍坊学院 | F185: 特殊教育 | G185: 24010101606 | H185: 78.00 | J185: 78.00 | K185: 否
A186: 183 | B186: 特殊教育 | C186: 2 | D186: 宋金欣 | E186: 济南大学 | F186: 特殊教育 | G186: 24010100617 | H186: 77.50 | J186: 77.50 | K186: 是 | L186: 83.00 | M186: 90.00 | N186: =SUM(L186:M186) -> 173.00
A187: 184 | B187: 特殊教育 | C187: 3 | D187: 张正坤 | E187: 潍坊学院 | F187: 特殊教育 | G187: 24010101022 | H187: 77.50 | J187: 77.50 | K187: 是 | L187: 78.00 | M187: 90.00 | N187: =SUM(L187:M187) -> 168.00
A188: 185 | B188: 特殊教育 | C188: 4 | D188: 王亚琪 | E188: 潍坊学院 | F188: 特殊教育 | G188: 24010100513 | H188: 74.00 | J188: 74.00 | K188: 否
A189: 186 | B189: 特殊教育 | C189: 5 | D189: 李兆旭 | E189: 济南大学 | F189: 特殊教育 | G189: 24010101103 | H189: 72.00 | J189: 72.00 | K189: 否
A190: 187 | B190: 特殊教育 | C190: 6 | D190: 张铭翰 | E190: 济南大学 | F190: 特殊教育 | G190: 24010101221 | H190: 69.50 | J190: 69.50 | K190: 是 | L190: 83.00 | M190: 95.00 | N190: =SUM(L190:M190) -> 178.00
A191: 188 | B191: 特殊教育 | C191: 7 | D191: 王元博 | E191: 潍坊学院 | F191: 特殊教育 | G191: 24010101229 | H191: 69.50 | J191: 69.50 | K191: 是 | L191: 67.00 | M191: 74.00 | N191: =SUM(L191:M191) -> 141.00
A192: 189 | B192: 特殊教育 | C192: 8 | D192: 任强 | E192: 潍坊学院 | F192: 特殊教育 | G192: 24010100411 | H192: 67.50 | J192: 67.50 | K192: 否
A193: 190 | B193: 特殊教育 | C193: 9 | D193: 马宇涵 | E193: 济南大学 | F193: 特殊教育 | G193: 24010100818 | H193: 67.00 | J193: 67.00 | K193: 否
A194: 191 | B194: 特殊教育 | C194: 10 | D194: 高自强 | E194: 济南大学 | F194: 特殊教育 | G194: 24010100303 | H194: 64.50 | J194: 64.50 | K194: 否
A195: 192 | B195: 特殊教育 | C195: 11 | D195: 刘佩瑶 | E195: 济南大学 | F195: 特殊教育 | G195: 24010100412 | H195: 63.50 | J195: 63.50 | K195: 是 | L195: 87.00 | M195: 94.00 | N195: =SUM(L195:M195) -> 181.00
A196: 193 | B196: 特殊教育 | C196: 12 | D196: 金心怡 | E196: 济南大学 | F196: 特殊教育 | G196: 24010100724 | H196: 63.50 | J196: =H196+I196 -> 63.50 | K196: 是 | L196: 86.00 | M196: 92.00 | N196: =SUM(L196:M196) -> 178.00
A197: 194 | B197: 特殊教育 | C197: 13 | D197: 王骁 | E197: 潍坊学院 | F197: 特殊教育 | G197: 24010101107 | H197: 60.50 | J197: 60.50 | K197: 否
A198: 195 | B198: 特殊教育 | C198: 14 | D198: 张悦楚 | E198: 济南大学 | F198: 特殊教育 | G198: 24010100508 | H198: 60.00 | J198: 60.00 | K198: 是 | L198: 60.00 | M198: 82.00 | N198: =SUM(L198:M198) -> 142.00
A199: 196 | B199: 特殊教育 | C199: 15 | D199: 杜新宇 | E199: 潍坊学院 | F199: 特殊教育 | G199: 24010100313 | H199: 60.00 | J199: 60.00 | K199: 是 | L199: 70.00 | M199: 66.00 | N199: =SUM(L199:M199) -> 136.00
A200: 197 | B200: 特殊教育 | C200: 16 | D200: 高德洋 | E200: 潍坊学院 | F200: 特殊教育 | G200: 24010101329 | H200: 55.00 | J200: 55.00 | K200: 否
... 228 more rows
